bitfinex-derivatives/quotes_BTCF0:USTF0_20250129
["timestamp","ask_amount","ask_price","bid_price","bid_amount"]
[1738116692002,0.22928814,102140.0,102130.0,0.00014685]
[1738116692302,0.59008814,102140.0,102130.0,0.00014685]
[1738116693303,0.22928814,102140.0,102130.0,0.00014685]
[1738116693806,0.59008814,102140.0,102130.0,0.00014685]
[1738116696113,0.45296014,102140.0,102100.0,0.64149029]
[1738116696308,0.45296014,102140.0,102100.0,0.549477]
[1738116696309,0.22917329,102120.0,102100.0,0.549477]
[1738116696514,0.13716,102120.0,102100.0,0.64149029]
[1738116697213,0.13716,102120.0,102100.0,0.65072517]
[1738116697608,0.13716,102120.0,102100.0,0.64543517]
[1738116697801,0.13716,102120.0,102100.0,0.82015169]
[1738116699602,0.13716,102120.0,102100.0,0.7281384]
[1738116700010,0.22917329,102120.0,102100.0,0.7281384]
[1738116700922,0.22918129,102110.0,102100.0,0.6819284]
[1738116701521,0.137168,102110.0,102100.0,0.6819284]
[1738116701716,0.137168,102110.0,102100.0,0.50721188]
[1738116703227,0.22918129,102110.0,102100.0,0.50721188]
[1738116703427,0.22918129,102110.0,102100.0,0.37003488]
[1738116705627,0.137168,102110.0,102100.0,0.37003488]
[1738116707527,0.22918129,102110.0,102100.0,0.00923488]
[1738116709421,0.58998129,102110.0,102100.0,0.00923488]
[1738116711227,0.137168,102110.0,102100.0,0.00923488]
[1738116712833,0.22918129,102110.0,102100.0,0.00923488]
[1738116713037,0.22918129,102110.0,102100.0,0.00754488]
[1738116713332,0.22918129,102110.0,102100.0,0.00014685]
[1738116716036,0.137168,102110.0,102100.0,0.00014685]
[1738116716524,0.22918129,102110.0,102100.0,0.00014685]
[1738116717234,0.22918129,102110.0,102100.0,0.00923573]
[1738116717533,0.137168,102110.0,102100.0,0.00014685]
[1738116718034,0.00014685,102120.0,102100.0,0.45296014]
[1738116718335,0.13730385,102120.0,102110.0,0.497968]
[1738116718724,0.31265568,102120.0,102110.0,0.497968]
[1738116722234,0.40466897,102120.0,102110.0,0.137168]
[1738116722433,0.37589541,102120.0,102110.0,0.137168]
[1738116722831,0.73669541,102120.0,102110.0,0.137168]
[1738116723039,0.37589541,102120.0,102110.0,0.137168]
[1738116723234,0.137168,102110.0,102100.0,0.50729594]
[1738116723440,0.22918129,102110.0,102100.0,0.50729594]
[1738116723635,0.22918129,102110.0,102100.0,0.14649594]
[1738116725340,0.22918129,102110.0,102100.0,0.00931894]
[1738116725934,0.22918129,102110.0,102100.0,0.00014685]
[1738116726241,0.58998129,102110.0,102100.0,0.00014685]
[1738116728439,0.45281329,102110.0,102090.0,0.90015759]
[1738116728637,0.37919429,102100.0,102090.0,0.91484974]
[1738116728827,0.287181,102100.0,102090.0,0.91484974]
[1738116731543,0.31265668,102120.0,102110.0,0.137168]
[1738116731840,0.41585668,102120.0,102110.0,0.137168]
[1738116732045,0.50786997,102120.0,102110.0,0.137168]
[1738116732442,0.137168,102110.0,102100.0,0.49812485]
[1738116732655,0.22918129,102110.0,102100.0,0.49812485]
[1738116733533,0.58998129,102110.0,102100.0,0.00014685]
[1738116735844,1.28998129,102110.0,102100.0,0.00014685]
[1738116738538,1.29943252,102110.0,102100.0,0.00014685]
[1738116738845,1.38939252,102110.0,102100.0,0.00014685]
[1738116739344,1.56474435,102110.0,102100.0,0.00014685]
[1738116739846,1.20394435,102110.0,102100.0,0.00014685]
[1738116740046,0.50394435,102110.0,102100.0,0.00014685]
[1738116740446,0.31251983,102110.0,102100.0,0.00014685]
[1738116740742,0.31251983,102110.0,102100.0,0.59014114]
[1738116740743,0.17535183,102110.0,102100.0,0.59014114]
[1738116740944,0.17535183,102110.0,102100.0,0.54712785]
[1738116741549,0.17535183,102110.0,102100.0,0.63914114]
[1738116742047,0.17535183,102110.0,102100.0,0.54712785]
[1738116742246,0.17535183,102110.0,102100.0,0.63914114]
[1738116742438,0.17535183,102110.0,102100.0,0.69174114]
[1738116743149,0.38722723,102120.0,102100.0,0.69174114]
[1738116743347,0.38722723,102120.0,102100.0,0.55456014]
[1738116743551,0.38722723,102120.0,102110.0,0.58998129]
[1738116743552,0.14687123,102120.0,102110.0,0.58998129]
[1738116743743,0.14687123,102120.0,102110.0,0.63778129]
[1738116744335,0.17535183,102130.0,102120.0,0.137155]
[1738116744638,0.16551109,102130.0,102120.0,0.32118158]
[1738116744941,0.00146956,102140.0,102130.0,0.137141]
[1738116745135,0.00146956,102140.0,102130.0,0.68855429]
[1738116747853,0.00146956,102140.0,102130.0,0.86293497]
[1738116748253,0.00146956,102140.0,102130.0,0.77092168]
[1738116748554,0.23061085,102140.0,102130.0,0.53518068]
[1738116748746,0.59141085,102140.0,102130.0,0.17438068]
[1738116748945,0.23061085,102140.0,102130.0,0.17438068]
[1738116751050,0.93061085,102140.0,102130.0,0.17438068]
[1738116751438,1.29141085,102140.0,102130.0,0.17438068]
[1738116751643,0.93061085,102140.0,102130.0,0.17438068]
[1738116751848,0.137141,102130.0,102120.0,0.14657989]
[1738116752049,0.239841,102130.0,102120.0,0.14657989]
[1738116752556,0.33185429,102130.0,102120.0,0.00943089]
[1738116752854,0.69265429,102130.0,102120.0,0.00014685]
[1738116757163,0.70225707,102130.0,102120.0,0.00014685]
[1738116764760,0.13717,102110.0,102090.0,0.60988076]
[1738116764956,0.22918329,102110.0,102090.0,0.60988076]
[1738116765156,0.22918329,102110.0,102090.0,0.70189405]
[1738116765557,0.13717,102110.0,102090.0,0.70189405]
[1738116765863,0.13731685,102110.0,102090.0,0.7020409]
[1738116766966,0.22933014,102110.0,102090.0,0.61002761]
[1738116768666,0.22919429,102100.0,102090.0,0.61002761]
[1738116768963,0.22919429,102100.0,102090.0,0.37183361]
[1738116769158,0.33039429,102100.0,102090.0,0.37183361]
[1738116769757,0.33039429,102100.0,102090.0,0.36241576]
[1738116770558,0.33039429,102100.0,102090.0,0.00161576]
[1738116770959,0.69119429,102100.0,102090.0,0.00161576]
[1738116773969,0.70060032,102100.0,102090.0,0.00161576]
[1738116777480,0.238381,102100.0,102090.0,0.36241576]
[1738116777960,0.33039429,102100.0,102090.0,0.36241576]
[1738116778272,0.28189429,102100.0,102090.0,0.36241576]
[1738116778473,0.28189429,102100.0,102090.0,0.41201576]
[1738116779567,0.137181,102100.0,102090.0,0.41201576]
[1738116779769,0.45296014,102110.0,102090.0,0.50402905]
[1738116779770,0.13731685,102110.0,102090.0,0.50402905]
[1738116779970,0.00014685,102110.0,102100.0,0.58999429]
[1738116780366,0.00014685,102110.0,102100.0,0.64219429]
[1738116783471,0.00014685,102110.0,102100.0,0.81657497]
[1738116786382,0.46511473,102140.0,102130.0,0.137141]
[1738116786582,0.13859856,102140.0,102130.0,0.137141]
[1738116787084,0.13859856,102140.0,102130.0,0.546941]
[1738116788180,0.59141185,102140.0,102130.0,0.049]
[1738116788784,0.49939856,102140.0,102130.0,0.049]
[1738116789386,0.13859856,102140.0,102130.0,0.049]
[1738116789574,0.137129,102140.0,102130.0,0.049]
[1738116789992,0.497929,102140.0,102130.0,0.049]
[1738116790288,0.137129,102140.0,102130.0,0.049]
[1738116792083,0.137129,102140.0,102120.0,0.63981314]
[1738116793087,0.243129,102140.0,102120.0,0.63981314]
[1738116794179,0.243129,102140.0,102120.0,0.69181314]
[1738116796390,0.243129,102140.0,102120.0,0.70134819]
[1738116796884,0.292029,102140.0,102120.0,0.70134819]
[1738116797184,0.292029,102140.0,102130.0,0.3608]
[1738116798988,0.38404229,102140.0,102130.0,0.3608]
[1738116800594,0.292029,102140.0,102130.0,0.3608]
[1738116803996,0.30162056,102140.0,102130.0,0.3608]
[1738116804196,0.30162056,102140.0,102120.0,0.1468349]
[1738116804389,0.30162056,102140.0,102130.0,0.3608]
[1738116804590,0.66242056,102140.0,102120.0,0.59964819]
[1738116804795,0.22915429,102130.0,102120.0,0.5076349]
[1738116805493,0.58995429,102130.0,102120.0,0.00014685]
[1738116808600,0.22915429,102130.0,102120.0,0.00014685]
[1738116808801,0.58995429,102130.0,102120.0,0.00014685]
[1738116811290,0.22915429,102130.0,102120.0,0.00014685]
[1738116813090,0.58995429,102130.0,102120.0,0.00014685]
[1738116815504,0.22915429,102130.0,102120.0,0.00014685]
[1738116817207,0.58995429,102130.0,102120.0,0.00014685]
[1738116817516,0.22915429,102130.0,102120.0,0.00014685]
[1738116818111,0.58995429,102130.0,102120.0,0.00014685]
[1738116825023,0.68196758,102130.0,102120.0,0.00014685]
[1738116825325,0.76680758,102130.0,102120.0,0.00014685]
[1738116826528,0.76680758,102130.0,102120.0,1e-08]
[1738116830725,0.137168,102110.0,102100.0,0.17438068]
[1738116830927,0.137181,102100.0,102090.0,0.0508]
[1738116831123,0.137181,102100.0,102080.0,0.77738068]
[1738116831124,0.22919429,102100.0,102080.0,0.77738068]
[1738116831428,0.09201329,102090.0,102080.0,0.82798068]
[1738116831722,0.33589429,102100.0,102080.0,0.82798068]
[1738116831928,0.33604114,102100.0,102080.0,0.83774011]
[1738116833013,0.22920829,102090.0,102080.0,0.83774011]
[1738116833215,0.22920829,102090.0,102080.0,0.70054011]
[1738116834327,0.22920829,102090.0,102080.0,0.52615943]
[1738116835431,0.137195,102090.0,102080.0,0.66336743]
[1738116836420,0.137195,102090.0,102080.0,0.16535943]
[1738116836626,0.22920829,102090.0,102080.0,0.16535943]
[1738116837025,0.22920829,102090.0,102080.0,0.33974011]
[1738116837630,0.22920829,102090.0,102080.0,0.70054011]
[1738116837821,0.22920829,102090.0,102080.0,0.69078068]
[1738116839224,0.137195,102090.0,102080.0,0.82798868]
[1738116840433,0.137195,102090.0,102080.0,0.653608]
[1738116848432,0.137195,102090.0,102080.0,0.5164]
[1738116848641,0.19770691,102090.0,102080.0,0.5164]
[1738116850044,0.19770691,102090.0,102080.0,0.653608]
[1738116854540,0.30454376,102100.0,102090.0,0.137195]
[1738116854740,0.30454376,102100.0,102090.0,0.497995]
[1738116857238,0.19784376,102100.0,102090.0,0.497995]
[1738116858430,0.24974376,102100.0,102090.0,0.497995]
[1738116859744,0.24974376,102100.0,102090.0,0.67237568]
[1738116861446,0.30324376,102100.0,102090.0,0.67237568]
[1738116861747,0.30324376,102100.0,102090.0,0.68190506]
[1738116862049,0.35474376,102100.0,102090.0,0.68190506]
[1738116862648,0.41525567,102100.0,102090.0,0.53518068]
[1738116862837,0.77605567,102100.0,102090.0,0.17438068]
[1738116869046,0.41525567,102100.0,102090.0,0.17438068]
[1738116869751,0.41525567,102100.0,102080.0,0.73988956]
[1738116869752,0.41525567,102100.0,102080.0,0.68176267]
[1738116869955,0.06051191,102090.0,102080.0,0.68176267]
[1738116870657,0.35474376,102100.0,102080.0,0.74227458]
[1738116871551,0.35474376,102100.0,102090.0,0.3608]
[1738116873550,0.35674376,102100.0,102090.0,0.3608]
[1738116873942,0.35474376,102100.0,102090.0,0.3608]
[1738116874146,0.35974376,102100.0,102090.0,0.3608]
[1738116874653,0.42025567,102100.0,102090.0,0.3608]
[1738116874853,0.35974376,102100.0,102090.0,0.3608]
[1738116875357,0.35974376,102100.0,102090.0,0.53518068]
[1738116879857,0.35974376,102100.0,102090.0,0.17438068]
[1738116881158,0.42025567,102100.0,102090.0,0.17438068]
[1738116881557,0.35974376,102100.0,102090.0,0.17438068]
[1738116881959,0.78105567,102100.0,102090.0,0.17438068]
[1738116882763,0.42025567,102100.0,102090.0,0.17438068]
[1738116883563,0.137195,102090.0,102080.0,0.73466267]
[1738116883765,0.19770691,102090.0,102080.0,0.73466267]
[1738116884554,0.19970691,102090.0,102080.0,0.73466267]
[1738116886262,0.19970691,102090.0,102080.0,0.84787458]
[1738116886471,0.19970691,102090.0,102080.0,0.6734939]
[1738116887366,0.19970691,102090.0,102080.0,0.61298199]
[1738116889967,0.19970691,102090.0,102080.0,1.01987024]
[1738116890767,0.19970691,102090.0,102080.0,0.88266424]
[1738116894770,0.19970691,102090.0,102080.0,0.46916424]
[1738116895765,0.19970691,102090.0,102080.0,0.82996424]
[1738116897574,0.19970691,102090.0,102080.0,0.96717224]
[1738116899374,0.19970691,102090.0,102080.0,0.91427224]
[1738116903472,0.19970691,102090.0,102080.0,0.55347224]
[1738116903782,0.19970691,102090.0,102080.0,0.41626424]
[1738116904169,0.19970691,102090.0,102080.0,0.00937599]
[1738116904369,0.19970691,102090.0,102080.0,0.3608]
[1738116905074,0.137208,102080.0,102070.0,0.8690351]
[1738116905273,0.19771991,102080.0,102070.0,0.5082351]
[1738116905576,0.25823182,102080.0,102070.0,0.87873469]
[1738116905882,0.19771991,102080.0,102070.0,0.87873469]
[1738116906378,0.20171991,102080.0,102070.0,0.87873469]
[1738116907076,0.26223182,102080.0,102070.0,0.87873469]
[1738116907281,0.26223182,102080.0,102070.0,0.47184644]
[1738116907477,0.20171991,102080.0,102070.0,0.47184644]
[1738116909776,0.20171991,102080.0,102070.0,0.11104644]
[1738116909980,0.62303182,102080.0,102070.0,0.00014685]
[1738116910173,0.78033182,102080.0,102070.0,0.00014685]
[1738116911973,0.41953182,102080.0,102070.0,0.00014685]
[1738116912178,0.78033182,102080.0,102070.0,0.00014685]
[1738116912483,0.41953182,102080.0,102070.0,0.00014685]
[1738116913280,0.77633182,102080.0,102070.0,0.00014685]
[1738116914981,0.69963573,102080.0,102060.0,0.17438068]
[1738116915285,0.61904582,102070.0,102060.0,0.17438068]
[1738116917480,0.62004582,102070.0,102060.0,0.004]
[1738116917690,0.137235,102060.0,102050.0,0.17452753]
[1738116917886,0.77395882,102060.0,102050.0,0.17452753]
[1738116918187,0.83447073,102060.0,102050.0,0.17452753]
[1738116918688,0.137249,102050.0,102040.0,0.23250757]
[1738116918989,0.61907282,102050.0,102040.0,0.23250757]
[1738116920588,0.59035162,102050.0,102040.0,0.23250757]
[1738116920886,0.59735162,102050.0,102040.0,0.23250757]
[1738116921387,0.137262,102040.0,102030.0,0.00147002]
[1738116921686,0.59036462,102040.0,102030.0,0.00147002]
[1738116922081,0.137262,102040.0,102030.0,0.49954602]
[1738116922283,0.137262,102040.0,102030.0,0.55284602]
[1738116922786,0.141262,102040.0,102030.0,0.55284602]
[1738116923189,0.23356462,102040.0,102030.0,0.55284602]
[1738116925793,0.141262,102040.0,102030.0,0.55284602]
[1738116926907,0.23356462,102040.0,102030.0,0.55284602]
[1738116927408,0.23356462,102040.0,102020.0,0.47764912]
[1738116927409,0.54940524,102040.0,102000.0,0.33250757]
[1738116927599,0.09230262,102010.0,102000.0,0.33250757]
[1738116927800,0.137302,102010.0,102000.0,0.84045824]
[1738116928002,0.10414685,102030.0,102010.0,0.137295]
[1738116928202,0.13742485,102030.0,102020.0,0.3608]
[1738116928405,0.45324947,102030.0,102010.0,0.1889]
[1738116928607,0.22959162,102020.0,102010.0,0.4124]
[1738116928908,0.22959162,102020.0,102010.0,0.0516]
[1738116929413,0.09230262,102020.0,102000.0,0.58585824]
[1738116929613,0.22960462,102010.0,102000.0,0.58585824]
[1738116931511,0.137302,102010.0,102000.0,0.35335067]
[1738116931713,0.23360462,102010.0,102000.0,0.35335067]
[1738116932006,0.23360462,102010.0,102000.0,0.2062]
[1738116932306,0.59440462,102010.0,102000.0,0.1]
[1738116933722,0.23360462,102010.0,102000.0,0.1]
[1738116935121,0.59440462,102010.0,102000.0,0.1]
[1738116935319,0.64800462,102010.0,102000.0,0.1]
[1738116935616,0.59440462,102010.0,102000.0,0.1]
[1738116935813,0.502102,102010.0,102000.0,0.237316]
[1738116936012,0.004,102010.0,102000.0,0.345716]
[1738116936821,0.09630262,102010.0,102000.0,0.345716]
[1738116937123,0.004,102010.0,102000.0,0.345716]
[1738116938928,0.141302,102010.0,102000.0,0.345716]
[1738116939119,0.23360462,102010.0,102000.0,0.345716]
[1738116939423,0.23360462,102010.0,102000.0,0.2084]
[1738116939725,0.23360462,102010.0,102000.0,0.1]
[1738116939924,0.59440462,102010.0,102000.0,0.1]
[1738116941515,0.23360462,102010.0,102000.0,0.1]
[1738116941715,0.141302,102010.0,102000.0,0.1]
[1738116941920,0.141302,102010.0,102000.0,0.1523]
[1738116942621,0.23360462,102010.0,102000.0,0.1]
[1738116943314,0.23360462,102010.0,102000.0,0.10012452]
[1738116944024,0.141302,102010.0,102000.0,0.23744052]
[1738116944216,0.141302,102010.0,102000.0,0.29154052]
[1738116950526,0.20190158,102010.0,102000.0,0.29154052]
[1738116951729,0.20190158,102010.0,102000.0,0.30146333]
[1738116954931,0.20190158,102010.0,102000.0,0.24736333]
[1738116956433,0.20190158,102010.0,102000.0,0.4798709]
[1738116957032,0.20190158,102010.0,102000.0,0.8406709]
[1738116958623,0.004,102010.0,102000.0,0.96187006]
[1738116959831,0.004,102010.0,102000.0,0.90127048]
[1738116960435,0.004,102010.0,102000.0,0.96187006]
[1738116962932,0.004,102010.0,102000.0,0.90127048]
[1738116963634,0.004,102010.0,102000.0,1.88564371]
[1738116964635,0.30229158,102020.0,102010.0,0.137302]
[1738116964636,0.241692,102020.0,102010.0,0.137302]
[1738116964832,0.241692,102020.0,102010.0,0.498102]
[1738116966337,0.248692,102020.0,102010.0,0.498102]
[1738116966645,0.1114,102020.0,102010.0,0.498102]
[1738116968340,0.1114,102020.0,102010.0,0.73160921]
[1738116968736,0.34101759,102020.0,102010.0,0.37080921]
[1738116969437,0.70181759,102020.0,102010.0,0.37080921]
[1738116969940,0.70181759,102020.0,102010.0,0.23350721]
[1738116975949,0.71152886,102020.0,102010.0,0.23350721]
[1738116977447,0.71152886,102020.0,102000.0,0.84166754]
[1738116977752,0.0528,102010.0,102000.0,0.84166754]
[1738116978549,0.190102,102010.0,102000.0,0.84166754]
[1738116979245,0.193102,102010.0,102000.0,0.84166754]
[1738116980951,0.193102,102010.0,102000.0,0.60816033]
[1738116983641,0.003,102010.0,102000.0,0.70048892]
[1738116983946,0.003,102010.0,102000.0,0.75238892]
[1738116988049,0.003,102010.0,102000.0,0.98589613]
[1738116989963,0.04994685,102030.0,102020.0,0.137289]
[1738116990258,0.00014685,102030.0,102020.0,0.59041759]
[1738116990453,0.00014685,102030.0,102020.0,0.498089]
[1738116990657,0.00014685,102030.0,102020.0,0.55866306]
[1738116992652,0.00014685,102030.0,102020.0,0.64048639]
[1738116994560,0.00014685,102030.0,102020.0,1.01096237]
[1738116999649,0.13742185,102030.0,102020.0,0.19706498]
[1738117000763,0.13742185,102030.0,102020.0,0.55786498]
[1738117001352,0.00014685,102030.0,102020.0,0.65016237]
[1738117002162,0.00014685,102030.0,102020.0,0.55786498]
[1738117002560,0.22971924,102030.0,102020.0,0.50776498]
[1738117002871,0.64341924,102030.0,102020.0,0.00967598]
[1738117003162,0.64341924,102030.0,102010.0,0.137299]
[1738117003163,0.59844163,102030.0,102000.0,0.76289613]
[1738117003374,0.69629739,102020.0,102000.0,1.12369613]
[1738117003670,0.137302,102010.0,102000.0,1.12369613]
[1738117003855,0.137302,102010.0,102000.0,0.94699888]
[1738117005069,0.137302,102010.0,102000.0,0.95299888]
[1738117005456,0.137302,102010.0,102000.0,0.94699888]
[1738117005457,0.140302,102010.0,102000.0,0.94699888]
[1738117006463,0.189402,102010.0,102000.0,0.94699888]
[1738117006968,0.189402,102010.0,102000.0,0.95667953]
[1738117007272,0.0521,102010.0,102000.0,1.04897692]
[1738117007460,0.003,102010.0,102000.0,1.04897692]
[1738117007767,0.003,102010.0,102000.0,0.70021556]
[1738117009668,0.003,102010.0,102000.0,0.60791817]
[1738117009871,0.140302,102010.0,102000.0,0.60791817]
[1738117010162,0.59339939,102010.0,102000.0,0.10012452]
[1738117015369,0.23259939,102010.0,102000.0,0.46092452]
[1738117015566,0.23259939,102010.0,102000.0,0.10012452]
[1738117015767,0.140302,102010.0,102000.0,0.10012452]
[1738117015967,0.140302,102010.0,102000.0,0.46092452]
[1738117016659,0.140302,102010.0,102000.0,0.10012452]
[1738117016876,0.501102,102010.0,102000.0,0.10012452]
[1738117019273,0.501102,102010.0,102000.0,0.1]
[1738117021575,0.501102,102010.0,102000.0,0.10012452]
[1738117022675,0.59339939,102010.0,102000.0,0.10012452]
[1738117023476,0.501102,102010.0,102000.0,0.10012452]
[1738117026278,0.003,102010.0,102000.0,0.70570391]
[1738117026668,0.003,102010.0,102000.0,0.73458024]
[1738117027279,0.003,102010.0,102000.0,0.67399338]
[1738117028181,0.003,102010.0,102000.0,0.31319338]
[1738117028371,0.003,102010.0,102000.0,0.67399338]
[1738117028679,0.003,102010.0,102000.0,0.70574407]
[1738117031182,0.003,102010.0,102000.0,0.61340652]
[1738117031977,0.003,102010.0,102000.0,0.84666243]
[1738117033994,0.003,102010.0,102000.0,0.48586243]
[1738117034179,0.003,102010.0,102000.0,0.84666243]
[1738117034681,0.59343955,102010.0,102000.0,0.34854643]
[1738117035478,0.59343955,102010.0,102000.0,0.33338043]
[1738117038389,0.59343955,102010.0,102000.0,0.10012452]
[1738117041487,0.59343955,102010.0,102000.0,0.50881016]
[1738117042700,0.60294889,102010.0,102000.0,0.50881016]
[1738117043998,0.59343955,102010.0,102000.0,0.50881016]
[1738117044406,0.59343955,102010.0,102000.0,0.27555425]
[1738117045907,0.23263955,102010.0,102000.0,0.27555425]
[1738117047795,0.140302,102010.0,102000.0,0.27555425]
[1738117048001,0.140302,102010.0,102000.0,0.77367025]
[1738117050604,0.20090456,102010.0,102000.0,0.77367025]
[1738117053012,0.56170456,102010.0,102000.0,0.41287025]
[1738117053217,0.20090456,102010.0,102000.0,0.41287025]
[1738117053406,0.20090456,102010.0,102000.0,0.77367025]
[1738117054111,0.56170456,102010.0,102000.0,0.27555425]
[1738117057412,0.62230712,102010.0,102000.0,0.27555425]
[1738117058116,1.18500512,102010.0,101990.0,0.23325591]
[1738117058318,0.77282112,102000.0,101990.0,0.23325591]
[1738117060221,0.77582112,102000.0,101990.0,0.23325591]
[1738117060520,0.63850512,102000.0,101980.0,0.14698773]
[1738117060708,0.55873156,101990.0,101980.0,0.14698773]
[1738117061109,0.19793156,101990.0,101980.0,0.14698773]
[1738117063121,0.19793156,101990.0,101980.0,0.20759029]
[1738117063617,0.599419,102000.0,101980.0,0.26819285]
[1738117063817,0.599419,102000.0,101990.0,0.60853156]
[1738117063818,0.137319,102000.0,101990.0,0.60853156]
[1738117064018,0.73513321,102010.0,101990.0,0.66243156]
[1738117064617,0.06060256,102000.0,101990.0,0.19793156]
[1738117064917,0.73513321,102010.0,101990.0,0.55873156]
[1738117065119,0.73513321,102010.0,102000.0,0.06060256]
[1738117065525,0.73513321,102010.0,101990.0,0.55873156]
[1738117065914,0.003,102000.0,101990.0,0.55873156]
[1738117066425,0.37433321,102010.0,101990.0,0.55873156]
[1738117066610,0.67553065,102010.0,102000.0,0.004]
[1738117067223,0.137321,102000.0,101990.0,0.001]
[1738117067422,0.498121,102000.0,101990.0,0.001]
[1738117067722,0.498121,102000.0,101980.0,0.66518673]
[1738117067919,0.498121,102000.0,101980.0,0.75755391]
[1738117068323,0.498121,102000.0,101980.0,0.66518673]
[1738117069624,0.498121,102000.0,101990.0,0.001]
[1738117070320,0.498121,102000.0,101980.0,0.90244264]
[1738117071420,0.551521,102000.0,101980.0,0.90244264]
[1738117072521,0.4142,102000.0,101980.0,0.89844264]
[1738117072717,0.137329,101990.0,101980.0,0.89844264]
[1738117073421,0.137329,101990.0,101980.0,0.90244264]
[1738117073724,0.137329,101990.0,101980.0,0.53764264]
[1738117073921,0.143329,101990.0,101980.0,0.89844264]
[1738117074230,0.143329,101990.0,101980.0,0.24290564]
[1738117075521,0.23569618,101990.0,101980.0,0.24290564]
[1738117075913,0.23569618,101990.0,101980.0,0.00964973]
[1738117076118,0.23569618,101990.0,101970.0,1.04305509]
[1738117076529,0.59649618,101990.0,101970.0,1.04305509]
[1738117077228,0.59649618,101990.0,101970.0,1.13542227]
[1738117077431,0.501129,101990.0,101970.0,1.13542227]
[1738117079531,0.59051018,101980.0,101970.0,0.52629648]
[1738117080030,0.498143,101980.0,101970.0,0.52629648]
[1738117080226,0.498143,101980.0,101970.0,0.23472659]
[1738117081137,0.501143,101980.0,101970.0,0.23472659]
[1738117082533,0.498143,101980.0,101970.0,0.23472659]
[1738117082734,0.504143,101980.0,101970.0,0.23472659]
[1738117082933,0.59651018,101980.0,101970.0,0.23472659]
[1738117083127,0.64681018,101980.0,101970.0,0.23472659]
[1738117083525,0.64681018,101980.0,101970.0,0.23325591]
[1738117083729,0.73917736,101980.0,101970.0,0.23325591]
[1738117084037,0.22972318,101970.0,101960.0,0.64145375]
[1738117084241,0.69442318,101970.0,101960.0,0.64145375]
[1738117084738,0.69442318,101970.0,101960.0,0.23371749]
[1738117088341,0.137379,101960.0,101940.0,0.73830773]
[1738117088542,0.498179,101960.0,101940.0,0.73830773]
[1738117088937,0.49832585,101960.0,101940.0,0.73830773]
[1738117089443,0.59069303,101960.0,101940.0,0.73830773]
[1738117089635,0.64089303,101960.0,101940.0,0.73830773]
[1738117089836,0.64089303,101960.0,101940.0,0.64594055]
[1738117090347,0.64289303,101960.0,101940.0,0.64594055]
[1738117090533,0.50551403,101960.0,101940.0,0.64594055]
[1738117090735,0.137383,101950.0,101940.0,0.64594055]
[1738117091427,0.137383,101950.0,101940.0,0.28514055]
[1738117092236,0.139383,101950.0,101940.0,0.28514055]
[1738117095432,0.139383,101950.0,101940.0,0.14774755]
[1738117095943,0.139383,101950.0,101940.0,0.28514355]
[1738117096141,0.139383,101950.0,101940.0,0.37751073]
[1738117096648,0.139383,101950.0,101940.0,0.34580444]
[1738117097442,0.002,101950.0,101940.0,0.76726533]
[1738117097834,0.002,101950.0,101940.0,0.70660444]
[1738117098235,0.002,101950.0,101940.0,0.76726533]
[1738117098633,0.002,101950.0,101940.0,0.73836868]
[1738117102648,0.002,101950.0,101940.0,1.09916868]
[1738117105952,0.002,101950.0,101940.0,1.19159381]
[1738117106349,0.002,101950.0,101940.0,1.09916868]
[1738117112155,0.002,101950.0,101940.0,1.76697217]
[1738117116456,0.00014685,101960.0,101950.0,0.137383]
[1738117116754,0.00014685,101960.0,101950.0,0.59060813]
[1738117118756,0.00014685,101960.0,101950.0,0.498183]
[1738117118757,0.13751685,101960.0,101950.0,0.498183]
[1738117118955,0.19071685,101960.0,101950.0,0.498183]
[1738117119459,0.19571685,101960.0,101950.0,0.498183]
[1738117120558,0.19571685,101960.0,101950.0,0.5588401]
[1738117123748,0.137383,101950.0,101940.0,0.43865357]
[1738117123949,0.239383,101950.0,101940.0,0.43865357]
[1738117124962,0.239383,101950.0,101940.0,0.49931067]
[1738117126358,0.600183,101950.0,101940.0,0.43865357]
[1738117126560,0.241383,101950.0,101940.0,0.43865357]
[1738117130771,0.241383,101950.0,101940.0,0.49931067]
[1738117132863,0.35860633,101950.0,101940.0,0.20774078]
[1738117134360,0.22122333,101950.0,101940.0,0.62919788]
[1738117134562,0.17182333,101950.0,101940.0,0.62919788]
[1738117135070,0.17182333,101950.0,101940.0,0.56854078]
[1738117136774,0.0546,101950.0,101940.0,0.56854078]
[1738117139872,0.0546,101950.0,101940.0,0.62919788]
[1738117140271,0.0546,101950.0,101940.0,0.56854078]
[1738117142275,0.0546,101950.0,101940.0,0.20774078]
[1738117144778,0.191983,101950.0,101940.0,0.20774078]
[1738117144981,0.191983,101950.0,101940.0,0.14708368]
[1738117145186,0.2526401,101950.0,101940.0,0.14708368]
[1738117145685,0.191983,101950.0,101940.0,0.14708368]
[1738117145874,0.191983,101950.0,101940.0,0.00968868]
[1738117146078,0.191983,101950.0,101930.0,0.90480142]
[1738117146681,0.137396,101940.0,101930.0,0.85190142]
[1738117146872,0.187796,101940.0,101930.0,0.85042999]
[1738117147679,0.187796,101940.0,101930.0,0.85142999]
[1738117148084,0.187796,101940.0,101930.0,0.80337955]
[1738117149779,0.187796,101940.0,101930.0,0.44257955]
[1738117149983,0.187796,101940.0,101930.0,0.80337955]
[1738117151888,0.187796,101940.0,101930.0,1.11061278]
[1738117152181,0.187796,101940.0,101930.0,1.47141278]
[1738117152894,0.30720833,101950.0,101930.0,1.39466688]
[1738117153195,0.11722333,101950.0,101940.0,0.6195102]
[1738117153488,0.11722333,101950.0,101940.0,0.6694102]
[1738117153891,0.11722333,101950.0,101940.0,0.7202102]
[1738117155188,0.11722333,101950.0,101940.0,0.95389839]
[1738117156676,0.11722333,101950.0,101940.0,1.01740987]
[1738117156881,0.11722333,101950.0,101940.0,1.37820987]
[1738117157079,0.11922333,101950.0,101940.0,1.37820987]
[1738117158792,0.11922333,101950.0,101940.0,1.43609157]
[1738117158991,0.11737018,101960.0,101950.0,0.137383]
[1738117159195,0.11737018,101960.0,101950.0,0.63959584]
[1738117160290,0.12237018,101960.0,101950.0,0.63959584]
[1738117160796,0.10296879,101970.0,101950.0,0.59462568]
[1738117160985,0.08896879,101970.0,101960.0,0.69288184]
[1738117162091,0.08996879,101970.0,101960.0,0.69288184]
[1738117163286,0.001,101970.0,101960.0,0.98445173]
[1738117163591,0.04964685,101980.0,101970.0,0.137356]
[1738117163785,0.04964685,101980.0,101970.0,0.498156]
[1738117163982,0.37980169,101980.0,101970.0,0.137356]
[1738117164197,0.137356,101970.0,101960.0,0.79173189]
[1738117165092,0.137356,101970.0,101960.0,0.78973189]
[1738117165392,0.137356,101970.0,101960.0,0.79958071]
[1738117166798,0.137356,101970.0,101960.0,0.51001082]